[Event "Late-Titled-Tuesday-Blitz-February-27-2024"]
[Site "Chess.com"]
[Date "2024.02.27"]
[Round "1"]
[White "Smile2005"]
[Black "Yurovskykh_Oleksandr"]
[Result "0-1"]
[WhiteElo "2391"]
[BlackElo "2687"]
[TimeControl "180+1"]
[EndTime "14:07:34 PST"]
[Termination "Yurovskykh_Oleksandr won by checkmate"]

1. e4 {[%clk 0:02:58.7]} 1... e6 {[%clk 0:02:52.9]} 2. d4 {[%clk 0:02:58.4]}
2... d5 {[%clk 0:02:50.6]} 3. Nd2 {[%clk 0:02:59.3]} 3... dxe4 {[%clk
0:02:49.9]} 4. Nxe4 {[%clk 0:03:00.2]} 4... Bd7 {[%clk 0:02:45.9]} 5. Nf3 {[%clk
0:02:57]} 5... Bc6 {[%clk 0:02:41.6]} 6. Bd3 {[%clk 0:02:57.4]} 6... Nd7 {[%clk
0:02:41.1]} 7. Neg5 {[%clk 0:02:52.2]} 7... Bd6 {[%clk 0:02:31.8]} 8. O-O {[%clk
0:02:50.2]} 8... h6 {[%clk 0:02:29.8]} 9. Nxe6 {[%clk 0:02:46.7]} 9... fxe6
{[%clk 0:02:29.1]} 10. Bg6+ {[%clk 0:02:47.6]} 10... Kf8 {[%clk 0:02:11.2]} 11.
Re1 {[%clk 0:02:47.3]} 11... Qf6 {[%clk 0:02:02.7]} 12. Qd3 {[%clk 0:02:24.9]}
12... Bxf3 {[%clk 0:01:54.2]} 13. Qxf3 {[%clk 0:02:20.8]} 13... Qxf3 {[%clk
0:01:50.8]} 14. gxf3 {[%clk 0:02:21.7]} 14... Ne7 {[%clk 0:01:47.6]} 15. Rxe6
{[%clk 0:02:19.8]} 15... Nxg6 {[%clk 0:01:47.4]} 16. Rxg6 {[%clk 0:02:20.7]}
16... Kf7 {[%clk 0:01:45.4]} 17. Rg4 {[%clk 0:02:20.7]} 17... Rae8 {[%clk
0:01:44.9]} 18. Be3 {[%clk 0:02:20.9]} 18... Nf6 {[%clk 0:01:43.8]} 19. Rg2
{[%clk 0:02:18.6]} 19... Nd5 {[%clk 0:01:42]} 20. Re1 {[%clk 0:02:11.6]} 20...
Bf4 {[%clk 0:01:22.2]} 21. c4 {[%clk 0:02:03.4]} 21... Nxe3 {[%clk 0:01:21.3]}
22. fxe3 {[%clk 0:02:04]} 22... Bxe3+ {[%clk 0:01:20.5]} 23. Kf1 {[%clk
0:02:04.5]} 23... Bxd4 {[%clk 0:01:19.8]} 24. Rd1 {[%clk 0:02:04.9]} 24... Bf6
{[%clk 0:01:18.9]} 25. Rd7+ {[%clk 0:02:03.7]} 25... Re7 {[%clk 0:01:19]} 26.
Rxe7+ {[%clk 0:02:04.1]} 26... Kxe7 {[%clk 0:01:19.9]} 27. Re2+ {[%clk 0:02:05]}
27... Kf7 {[%clk 0:01:19.9]} 28. Rd2 {[%clk 0:02:05.1]} 28... Rd8 {[%clk
0:01:20.5]} 29. Rxd8 {[%clk 0:02:05.2]} 29... Bxd8 {[%clk 0:01:21.4]} 30. b3
{[%clk 0:02:05.5]} 30... Ke6 {[%clk 0:01:21.1]} 31. Ke2 {[%clk 0:02:06.4]} 31...
Ke5 {[%clk 0:01:21]} 32. Ke3 {[%clk 0:02:06.9]} 32... Bg5+ {[%clk 0:01:21.1]}
33. Kd3 {[%clk 0:02:07.8]} 33... Bf4 {[%clk 0:01:21.5]} 34. Ke2 {[%clk
0:02:08.7]} 34... Kd4 {[%clk 0:01:21.5]} 35. h3 {[%clk 0:02:09.6]} 35... g5
{[%clk 0:01:21.4]} 36. Kf2 {[%clk 0:02:06.7]} 36... Kd3 {[%clk 0:01:21.1]} 37.
Kg2 {[%clk 0:02:04.7]} 37... Ke2 {[%clk 0:01:21.2]} 38. c5 {[%clk 0:02:04.1]}
38... c6 {[%clk 0:01:21]} 39. b4 {[%clk 0:02:02.5]} 39... a6 {[%clk 0:01:20.5]}
40. a4 {[%clk 0:02:01.9]} 40... h5 {[%clk 0:01:18.6]} 41. h4 {[%clk 0:01:53.3]}
41... gxh4 {[%clk 0:01:18.6]} 42. Kh3 {[%clk 0:01:52.5]} 42... Bg5 {[%clk
0:01:18.8]} 43. f4 {[%clk 0:01:51.8]} 43... Bf6 {[%clk 0:01:18.9]} 44. f5 {[%clk
0:01:50.7]} 44... Kf3 {[%clk 0:01:17.7]} 45. Kh2 {[%clk 0:01:43.8]} 45... Kf4
{[%clk 0:01:17.4]} 46. Kh3 {[%clk 0:01:44.7]} 46... Kxf5 {[%clk 0:01:18]} 47.
Kg2 {[%clk 0:01:44.8]} 47... Kg4 {[%clk 0:01:17.2]} 48. Kh2 {[%clk 0:01:45.2]}
48... h3 {[%clk 0:01:17.6]} 49. Kh1 {[%clk 0:01:45.2]} 49... Be5 {[%clk
0:01:16.8]} 50. Kg1 {[%clk 0:01:45.2]} 50... Kf3 {[%clk 0:01:17.5]} 51. Kh1
{[%clk 0:01:45.6]} 51... Ke3 {[%clk 0:01:18]} 52. Kg1 {[%clk 0:01:45.3]} 52...
Kd3 {[%clk 0:01:18.5]} 53. b5 {[%clk 0:01:45.5]} 53... axb5 {[%clk 0:01:18]} 54.
axb5 {[%clk 0:01:46.4]} 54... cxb5 {[%clk 0:01:18.9]} 55. c6 {[%clk 0:01:46.8]}
55... bxc6 {[%clk 0:01:19.7]} 56. Kf2 {[%clk 0:01:47.7]} 56... Ke4 {[%clk
0:01:19.4]} 57. Kg1 {[%clk 0:01:47.4]} 57... b4 {[%clk 0:01:19.5]} 58. Kh1
{[%clk 0:01:47.9]} 58... b3 {[%clk 0:01:20]} 59. Kg1 {[%clk 0:01:48.4]} 59... b2
{[%clk 0:01:20.5]} 60. Kf2 {[%clk 0:01:49]} 60... b1=N {[%clk 0:01:19.6]} 61.
Ke2 {[%clk 0:01:49.9]} 61... Nc3+ {[%clk 0:01:19.6]} 62. Kf2 {[%clk 0:01:49.9]}
62... Nd5 {[%clk 0:01:20.1]} 63. Kg1 {[%clk 0:01:50.2]} 63... c5 {[%clk
0:01:20.7]} 64. Kf2 {[%clk 0:01:50.3]} 64... c4 {[%clk 0:01:21.2]} 65. Ke2
{[%clk 0:01:51.2]} 65... c3 {[%clk 0:01:21.4]} 66. Kd1 {[%clk 0:01:50.7]} 66...
Kd3 {[%clk 0:01:21.8]} 67. Kc1 {[%clk 0:01:48]} 67... h2 {[%clk 0:01:21.1]} 68.
Kb1 {[%clk 0:01:46.5]} 68... h1=N {[%clk 0:01:19.3]} 69. Kc1 {[%clk 0:01:45.9]}
69... Ng3 {[%clk 0:01:19.3]} 70. Kd1 {[%clk 0:01:45.9]} 70... Ne4 {[%clk
0:01:19]} 71. Ke1 {[%clk 0:01:45.9]} 71... Ke3 {[%clk 0:01:13.7]} 72. Kd1 {[%clk
0:01:45.4]} 72... Nb4 {[%clk 0:01:14.1]} 73. Ke1 {[%clk 0:01:42.1]} 73... Nc5
{[%clk 0:01:12]} 74. Kf1 {[%clk 0:01:41.7]} 74... Bg3 {[%clk 0:01:08.5]} 75. Kg2
{[%clk 0:01:41.9]} 75... c2 {[%clk 0:01:08.3]} 76. Kxg3 {[%clk 0:01:39.9]} 76...
c1=N {[%clk 0:01:07.4]} 77. Kh4 {[%clk 0:01:39]} 77... N1d3 {[%clk 0:01:07.6]}
78. Kxh5 {[%clk 0:01:39.4]} 78... Kf4 {[%clk 0:01:07.4]} 79. Kg6 {[%clk
0:01:39.7]} 79... Nd5 {[%clk 0:01:07.8]} 80. Kf7 {[%clk 0:01:39.9]} 80... Ne5+
{[%clk 0:01:06.7]} 81. Ke8 {[%clk 0:01:39.7]} 81... Kf5 {[%clk 0:01:06.9]} 82.
Kd8 {[%clk 0:01:39.7]} 82... Ke6 {[%clk 0:01:07.1]} 83. Kc8 {[%clk 0:01:39]}
83... Nf7 {[%clk 0:01:06.1]} 84. Kb8 {[%clk 0:01:38.5]} 84... Kd6 {[%clk
0:01:06.3]} 85. Kc8 {[%clk 0:01:38.5]} 85... Kc6 {[%clk 0:01:06.3]} 86. Kb8
{[%clk 0:01:38.5]} 86... Kb6 {[%clk 0:01:06.3]} 87. Kc8 {[%clk 0:01:38.4]} 87...
Ne7+ {[%clk 0:01:05.7]} 88. Kb8 {[%clk 0:01:38.6]} 88... Ka6 {[%clk 0:01:04.5]}
89. Kc7 {[%clk 0:01:38.2]} 89... Kb5 {[%clk 0:01:00.5]} 90. Kb8 {[%clk
0:01:38.1]} 90... Kb6 {[%clk 0:01:00.3]} 91. Ka8 {[%clk 0:01:37.9]} 91... Nd6
{[%clk 0:00:54.6]} 92. Kb8 {[%clk 0:01:37.8]} 92... Nb5 {[%clk 0:00:54.1]} 93.
Ka8 {[%clk 0:01:37.5]} 93... Nc7+ {[%clk 0:00:54.4]} 94. Kb8 {[%clk 0:01:37.2]}
94... Nd7# {[%clk 0:00:53.3]} 0-1

[Event "Late-Titled-Tuesday-Blitz-February-27-2024"]
[Site "Chess.com"]
[Date "2024.02.27"]
[Round "1"]
[White "KATPAH"]
[Black "Jahonas"]
[Result "1-0"]
[WhiteElo "2654"]
[BlackElo "2361"]
[TimeControl "180+1"]
[EndTime "14:07:35 PST"]
[Termination "KATPAH won by resignation"]

1. e4 {[%clk 0:02:47.7]} 1... c6 {[%clk 0:02:59.5]} 2. d4 {[%clk 0:02:43.3]}
2... d5 {[%clk 0:02:59.1]} 3. exd5 {[%clk 0:02:44.2]} 3... cxd5 {[%clk
0:02:59.1]} 4. c4 {[%clk 0:02:44.9]} 4... Nf6 {[%clk 0:02:59.1]} 5. Nc3 {[%clk
0:02:45.1]} 5... e6 {[%clk 0:02:58.5]} 6. Nf3 {[%clk 0:02:44.5]} 6... Be7 {[%clk
0:02:56.7]} 7. cxd5 {[%clk 0:02:44.2]} 7... Nxd5 {[%clk 0:02:55.7]} 8. Bb5+
{[%clk 0:02:44.7]} 8... Bd7 {[%clk 0:02:53.9]} 9. Bxd7+ {[%clk 0:02:42.8]} 9...
Nxd7 {[%clk 0:02:51.7]} 10. Nxd5 {[%clk 0:02:42.6]} 10... exd5 {[%clk
0:02:51.3]} 11. O-O {[%clk 0:02:42.2]} 11... O-O {[%clk 0:02:50.9]} 12. Qb3
{[%clk 0:02:39.2]} 12... Nb6 {[%clk 0:02:41.1]} 13. Bf4 {[%clk 0:02:37]} 13...
Bd6 {[%clk 0:02:39.2]} 14. Ne5 {[%clk 0:02:33.1]} 14... f6 {[%clk 0:02:29.2]}
15. Nd3 {[%clk 0:02:29.3]} 15... Bxf4 {[%clk 0:02:26.8]} 16. Nxf4 {[%clk
0:02:30.2]} 16... Qd6 {[%clk 0:02:26.4]} 17. g3 {[%clk 0:02:28]} 17... Rae8
{[%clk 0:01:57.8]} 18. Rfe1 {[%clk 0:02:12.7]} 18... g5 {[%clk 0:01:40.2]} 19.
Nd3 {[%clk 0:02:07.4]} 19... Kg7 {[%clk 0:01:30.2]} 20. Nc5 {[%clk 0:01:50.4]}
20... Re7 {[%clk 0:01:26.8]} 21. Qf3 {[%clk 0:01:42.7]} 21... Rfe8 {[%clk
0:01:20]} 22. Rxe7+ {[%clk 0:01:41.8]} 22... Rxe7 {[%clk 0:01:19.1]} 23. Qf5
{[%clk 0:01:39.6]} 23... Nc4 {[%clk 0:01:14.1]} 24. b3 {[%clk 0:01:36.5]} 24...
Nd2 {[%clk 0:01:00.2]} 25. Rd1 {[%clk 0:01:35]} 25... Ne4 {[%clk 0:00:57.7]} 26.
Qc8 {[%clk 0:01:24]} 26... b6 {[%clk 0:00:49]} 27. Nd3 {[%clk 0:01:17.5]} 27...
Rc7 {[%clk 0:00:42.3]} 28. Qf5 {[%clk 0:01:16.7]} 28... Qd7 {[%clk 0:00:36.4]}
29. Qf3 {[%clk 0:01:14]} 29... Rc2 {[%clk 0:00:32.4]} 30. a4 {[%clk 0:01:13.4]}
30... Qc6 {[%clk 0:00:31.8]} 31. Qf5 {[%clk 0:01:10.6]} 31... Rd2 {[%clk
0:00:29.8]} 32. Rxd2 {[%clk 0:01:01.2]} 32... Nxd2 {[%clk 0:00:30.7]} 33. Kg2
{[%clk 0:01:01.8]} 33... Ne4 {[%clk 0:00:29.2]} 34. Nb4 {[%clk 0:01:01.1]} 34...
Qc3 {[%clk 0:00:18.3]} 35. Nxd5 {[%clk 0:00:57.5]} 35... Qxd4 {[%clk 0:00:17.8]}
36. Qd7+ {[%clk 0:00:55.7]} 36... Kh6 {[%clk 0:00:17.8]} 37. Qf5 {[%clk
0:00:52.9]} 37... Kg7 {[%clk 0:00:16.4]} 38. Ne3 {[%clk 0:00:51.9]} 38... Nc5
{[%clk 0:00:15.9]} 39. Qf3 {[%clk 0:00:48.4]} 39... Qe4 {[%clk 0:00:15.6]} 40.
Qxe4 {[%clk 0:00:37.6]} 40... Nxe4 {[%clk 0:00:16.5]} 41. b4 {[%clk 0:00:38.3]}
41... Nc3 {[%clk 0:00:16.1]} 42. a5 {[%clk 0:00:39]} 42... bxa5 {[%clk
0:00:15.8]} 43. bxa5 {[%clk 0:00:39.9]} 43... Nb5 {[%clk 0:00:15.5]} 44. Kf3
{[%clk 0:00:39.8]} 44... Kf7 {[%clk 0:00:15.6]} 45. Ke4 {[%clk 0:00:39.6]} 45...
Ke6 {[%clk 0:00:16.3]} 46. Nc4 {[%clk 0:00:39.5]} 46... h5 {[%clk 0:00:15.7]}
47. h4 {[%clk 0:00:39.1]} 47... gxh4 {[%clk 0:00:15.5]} 48. gxh4 {[%clk
0:00:40]} 48... f5+ {[%clk 0:00:16]} 49. Kf4 {[%clk 0:00:40.5]} 49... Kf6 {[%clk
0:00:16.1]} 50. Ne3 {[%clk 0:00:41.2]} 50... Nd6 {[%clk 0:00:16]} 51. Nd5+
{[%clk 0:00:41.2]} 51... Ke6 {[%clk 0:00:16.2]} 52. Nc7+ {[%clk 0:00:41.9]}
52... Kd7 {[%clk 0:00:16.1]} 53. Nd5 {[%clk 0:00:41]} 53... Ke6 {[%clk
0:00:16.4]} 54. Ne3 {[%clk 0:00:41.6]} 54... Kf6 {[%clk 0:00:16]} 55. f3 {[%clk
0:00:42.2]} 55... Ke6 {[%clk 0:00:16]} 56. Kg5 {[%clk 0:00:42.2]} 56... Ke5
{[%clk 0:00:16.5]} 57. Kxh5 {[%clk 0:00:42.5]} 57... f4 {[%clk 0:00:16.8]} 58.
Ng2 {[%clk 0:00:42.4]} 58... a6 {[%clk 0:00:16.8]} 59. Kg5 {[%clk 0:00:42.3]}
59... Nc4 {[%clk 0:00:17]} 60. h5 {[%clk 0:00:41.6]} 60... Nxa5 {[%clk
0:00:17.3]} 61. h6 {[%clk 0:00:42.3]} 61... Nc6 {[%clk 0:00:16]} 62. h7 {[%clk
0:00:42.9]} 62... Nd8 {[%clk 0:00:15.3]} 63. h8=Q+ {[%clk 0:00:42.9]} 63... Kd6
{[%clk 0:00:15]} 64. Qxd8+ {[%clk 0:00:42.8]} 1-0

[Event "Late-Titled-Tuesday-Blitz-February-27-2024"]
[Site "Chess.com"]
[Date "2024.02.27"]
[Round "1"]
[White "Vse_po_kaify"]
[Black "rhungaski"]
[Result "0-1"]
[WhiteElo "2238"]
[BlackElo "2595"]
[TimeControl "180+1"]
[EndTime "14:07:36 PST"]
[Termination "rhungaski won by resignation"]

1. e4 {[%clk 0:02:36.9]} 1... c5 {[%clk 0:02:59.3]} 2. Nf3 {[%clk 0:02:36.6]}
2... Nc6 {[%clk 0:02:59.5]} 3. Bb5 {[%clk 0:02:35.7]} 3... d6 {[%clk 0:02:59.6]}
4. O-O {[%clk 0:02:34.3]} 4... Bd7 {[%clk 0:02:59.9]} 5. Re1 {[%clk 0:02:34.5]}
5... Nf6 {[%clk 0:02:52.9]} 6. c3 {[%clk 0:02:33.8]} 6... a6 {[%clk 0:02:53.1]}
7. Bf1 {[%clk 0:02:33.9]} 7... Bg4 {[%clk 0:02:51.1]} 8. h3 {[%clk 0:02:34.2]}
8... Bxf3 {[%clk 0:02:43.9]} 9. Qxf3 {[%clk 0:02:34.5]} 9... g6 {[%clk
0:02:44.1]} 10. d3 {[%clk 0:02:30.8]} 10... Bg7 {[%clk 0:02:41.9]} 11. Be3
{[%clk 0:02:30.6]} 11... Nd7 {[%clk 0:02:40.6]} 12. Nd2 {[%clk 0:02:29.1]} 12...
O-O {[%clk 0:02:37.5]} 13. Qd1 {[%clk 0:02:27.7]} 13... b5 {[%clk 0:02:23.3]}
14. Nf3 {[%clk 0:02:26.3]} 14... e5 {[%clk 0:02:16.6]} 15. Rc1 {[%clk
0:02:21.3]} 15... Nb6 {[%clk 0:02:12.8]} 16. d4 {[%clk 0:02:08.3]} 16... exd4
{[%clk 0:02:08.4]} 17. cxd4 {[%clk 0:02:09.2]} 17... c4 {[%clk 0:02:08.7]} 18.
d5 {[%clk 0:01:52]} 18... Ne5 {[%clk 0:01:56.7]} 19. Nd4 {[%clk 0:01:51.9]}
19... Na4 {[%clk 0:01:57.1]} 20. Qd2 {[%clk 0:01:19.3]} 20... Nc5 {[%clk
0:01:15.7]} 21. Red1 {[%clk 0:01:07.4]} 21... Nxe4 {[%clk 0:01:14.9]} 22. Qc2
{[%clk 0:01:03.9]} 22... Qh4 {[%clk 0:00:48.1]} 23. f4 {[%clk 0:00:52.4]} 23...
Nd3 {[%clk 0:00:40.5]} 24. Bxd3 {[%clk 0:00:51.1]} 24... cxd3 {[%clk 0:00:41.4]}
25. Qxd3 {[%clk 0:00:49.9]} 25... Rfe8 {[%clk 0:00:38.5]} 26. Ne6 {[%clk
0:00:39]} 26... Bxb2 {[%clk 0:00:20.7]} 27. Rc7 {[%clk 0:00:25.1]} 27... Nc5
{[%clk 0:00:16.5]} 28. Nxc5 {[%clk 0:00:19.6]} 28... dxc5 {[%clk 0:00:17.4]} 29.
d6 {[%clk 0:00:16.9]} 29... Rad8 {[%clk 0:00:10.2]} 30. Bxc5 {[%clk 0:00:14.4]}
30... Qxf4 {[%clk 0:00:09.2]} 31. Re7 {[%clk 0:00:13.5]} 31... Rf8 {[%clk
0:00:06.7]} 32. d7 {[%clk 0:00:13.2]} 32... Qg5 {[%clk 0:00:06.7]} 33. Qd5
{[%clk 0:00:12.3]} 33... Be5 {[%clk 0:00:05.5]} 34. h4 {[%clk 0:00:11.3]} 34...
Qg4 {[%clk 0:00:03.2]} 35. Qxe5 {[%clk 0:00:11.1]} 35... Qxd1+ {[%clk
0:00:03.4]} 36. Kh2 {[%clk 0:00:11.3]} 36... Rxd7 {[%clk 0:00:03.4]} 37. Rxd7
{[%clk 0:00:11.7]} 37... Qxd7 {[%clk 0:00:04.2]} 38. Bxf8 {[%clk 0:00:12.3]}
38... Kxf8 {[%clk 0:00:05]} 39. Qh8+ {[%clk 0:00:11.9]} 39... Ke7 {[%clk
0:00:05.9]} 40. Qxh7 {[%clk 0:00:12.5]} 40... Qe6 {[%clk 0:00:06.8]} 41. Qh6
{[%clk 0:00:12]} 41... Qe5+ {[%clk 0:00:06.7]} 42. Kh3 {[%clk 0:00:11.9]} 42...
a5 {[%clk 0:00:07.5]} 43. Qd2 {[%clk 0:00:10.8]} 43... Qe6+ {[%clk 0:00:07]} 44.
Kh2 {[%clk 0:00:10.2]} 44... Qd6+ {[%clk 0:00:07.4]} 0-1

[Event "Late-Titled-Tuesday-Blitz-February-27-2024"]
[Site "Chess.com"]
[Date "2024.02.27"]
[Round "1"]
[White "JosephRyan"]
[Black "chucksterf10"]
[Result "0-1"]
[WhiteElo "2184"]
[BlackElo "2570"]
[TimeControl "180+1"]
[EndTime "14:07:36 PST"]
[Termination "chucksterf10 won on time"]

1. e4 {[%clk 0:02:56.2]} 1... a6 {[%clk 0:02:57.7]} 2. d4 {[%clk 0:02:54]} 2...
c6 {[%clk 0:02:57.7]} 3. Nf3 {[%clk 0:02:53.6]} 3... d5 {[%clk 0:02:57.8]} 4.
Nbd2 {[%clk 0:02:42.8]} 4... Bg4 {[%clk 0:02:54.3]} 5. Bd3 {[%clk 0:02:31.2]}
5... e6 {[%clk 0:02:51.9]} 6. h3 {[%clk 0:02:30.4]} 6... Bh5 {[%clk 0:02:50.3]}
7. c3 {[%clk 0:02:30.9]} 7... c5 {[%clk 0:02:49.1]} 8. exd5 {[%clk 0:02:26.5]}
8... Qxd5 {[%clk 0:02:43.9]} 9. Qb3 {[%clk 0:02:20.6]} 9... Nf6 {[%clk
0:02:35.7]} 10. Bc4 {[%clk 0:02:07.2]} 10... Qd7 {[%clk 0:02:20.9]} 11. Ne5
{[%clk 0:02:06.8]} 11... Qc8 {[%clk 0:02:15.1]} 12. O-O {[%clk 0:02:04]} 12...
Bd6 {[%clk 0:02:11.4]} 13. Ndf3 {[%clk 0:01:56.9]} 13... O-O {[%clk 0:02:05.9]}
14. Be3 {[%clk 0:01:55.1]} 14... Nbd7 {[%clk 0:01:57.2]} 15. Bxe6 {[%clk
0:01:39.6]} 15... cxd4 {[%clk 0:00:50.8]} 16. Nxd7 {[%clk 0:01:23.1]} 16... Nxd7
{[%clk 0:00:46.8]} 17. Nxd4 {[%clk 0:01:15.5]} 17... Qc7 {[%clk 0:00:41.4]} 18.
Bd5 {[%clk 0:01:06.5]} 18... Rab8 {[%clk 0:00:19.8]} 19. Bf3 {[%clk 0:01:04.3]}
19... Bxf3 {[%clk 0:00:19.3]} 20. Nxf3 {[%clk 0:01:03.8]} 20... Nf6 {[%clk
0:00:18.8]} 21. Rad1 {[%clk 0:00:59.6]} 21... Rfd8 {[%clk 0:00:17.7]} 22. Rd2
{[%clk 0:00:57.9]} 22... h6 {[%clk 0:00:17.9]} 23. Rfd1 {[%clk 0:00:57.5]} 23...
b5 {[%clk 0:00:18.6]} 24. Nd4 {[%clk 0:00:50.1]} 24... Ne4 {[%clk 0:00:17.4]}
25. Rd3 {[%clk 0:00:49.5]} 25... Nc5 {[%clk 0:00:17.6]} 26. Qc2 {[%clk
0:00:49.5]} 26... Nxd3 {[%clk 0:00:17.2]} 27. Rxd3 {[%clk 0:00:49.3]} 27... Be5
{[%clk 0:00:17.1]} 28. Nf5 {[%clk 0:00:46.2]} 28... Rxd3 {[%clk 0:00:16.3]} 29.
Qxd3 {[%clk 0:00:47.1]} 29... Rd8 {[%clk 0:00:16.7]} 30. Qe2 {[%clk 0:00:44.9]}
30... b4 {[%clk 0:00:15.1]} 31. c4 {[%clk 0:00:43.3]} 31... Bxb2 {[%clk
0:00:11.3]} 32. g3 {[%clk 0:00:40]} 32... Bf6 {[%clk 0:00:10.9]} 33. Qg4 {[%clk
0:00:38.6]} 33... Kf8 {[%clk 0:00:10.2]} 34. c5 {[%clk 0:00:36.7]} 34... Rd5
{[%clk 0:00:09]} 35. Qe4 {[%clk 0:00:28.9]} 35... Qe5 {[%clk 0:00:08.5]} 36. Qc2
{[%clk 0:00:20.1]} 36... Qxf5 {[%clk 0:00:08.1]} 37. Qa4 {[%clk 0:00:13.3]}
37... Qb1+ {[%clk 0:00:07.3]} 38. Kh2 {[%clk 0:00:12.2]} 38... Rd1 {[%clk
0:00:07.3]} 39. c6 {[%clk 0:00:08.2]} 39... Qe4 {[%clk 0:00:04.1]} 40. Bc5+
{[%clk 0:00:04.3]} 40... Kg8 {[%clk 0:00:03.8]} 41. Qxd1 {[%clk 0:00:02.4]}
41... Qxc6 {[%clk 0:00:03.9]} 0-1

[Event "Late-Titled-Tuesday-Blitz-February-27-2024"]
[Site "Chess.com"]
[Date "2024.02.27"]
[Round "1"]
[White "Inepton_Fermion"]
[Black "Fonsofan"]
[Result "0-1"]
[WhiteElo "2429"]
[BlackElo "2749"]
[TimeControl "180+1"]
[EndTime "14:07:39 PST"]
[Termination "Fonsofan won by checkmate"]

1. d4 {[%clk 0:02:55.9]} 1... d6 {[%clk 0:02:54.9]} 2. Nc3 {[%clk 0:02:53.6]}
2... e5 {[%clk 0:02:53.9]} 3. dxe5 {[%clk 0:02:51.7]} 3... dxe5 {[%clk
0:02:54.8]} 4. Qxd8+ {[%clk 0:02:52.1]} 4... Kxd8 {[%clk 0:02:54]} 5. e4 {[%clk
0:02:47.7]} 5... Be6 {[%clk 0:02:52.5]} 6. Nf3 {[%clk 0:02:33.5]} 6... f6 {[%clk
0:02:52.4]} 7. Be3 {[%clk 0:02:30.1]} 7... Nd7 {[%clk 0:02:51.5]} 8. O-O-O
{[%clk 0:02:30.1]} 8... c6 {[%clk 0:02:51.3]} 9. Nd2 {[%clk 0:02:27.4]} 9... Bb4
{[%clk 0:02:51.7]} 10. Ndb1 {[%clk 0:02:17.6]} 10... Kc7 {[%clk 0:02:48.9]} 11.
a3 {[%clk 0:02:17.8]} 11... Ba5 {[%clk 0:02:47.9]} 12. b4 {[%clk 0:02:15.3]}
12... Bb6 {[%clk 0:02:48.3]} 13. Bxb6+ {[%clk 0:02:14.3]} 13... axb6 {[%clk
0:02:49.2]} 14. Kb2 {[%clk 0:02:14.4]} 14... b5 {[%clk 0:02:48.4]} 15. Nd2
{[%clk 0:02:09.8]} 15... Ne7 {[%clk 0:02:47.3]} 16. Nb3 {[%clk 0:02:05.3]} 16...
Rhd8 {[%clk 0:02:42.9]} 17. Be2 {[%clk 0:02:04.6]} 17... Nc8 {[%clk 0:02:37.6]}
18. g3 {[%clk 0:02:01.7]} 18... Ncb6 {[%clk 0:02:37.4]} 19. Na5 {[%clk
0:01:55.7]} 19... Nc8 {[%clk 0:02:14.7]} 20. f4 {[%clk 0:01:50.7]} 20... Re8
{[%clk 0:02:07.5]} 21. Rhf1 {[%clk 0:01:48.6]} 21... b6 {[%clk 0:02:05.1]} 22.
Nb3 {[%clk 0:01:34.9]} 22... Nd6 {[%clk 0:02:03.7]} 23. Rd2 {[%clk 0:01:04.9]}
23... Rad8 {[%clk 0:02:00.9]} 24. Rfd1 {[%clk 0:01:04.3]} 24... Nf8 {[%clk
0:01:48.7]} 25. Bd3 {[%clk 0:00:45.4]} 25... exf4 {[%clk 0:01:38.5]} 26. gxf4
{[%clk 0:00:45.3]} 26... g5 {[%clk 0:01:39]} 27. fxg5 {[%clk 0:00:35.4]} 27...
fxg5 {[%clk 0:01:39.9]} 28. e5 {[%clk 0:00:35.8]} 28... Nc4+ {[%clk 0:01:39.9]}
29. Bxc4 {[%clk 0:00:35.9]} 29... Bxc4 {[%clk 0:01:40.1]} 30. Rxd8 {[%clk
0:00:32.4]} 30... Rxd8 {[%clk 0:01:41]} 31. Rxd8 {[%clk 0:00:32.2]} 31... Kxd8
{[%clk 0:01:41.9]} 32. Nd4 {[%clk 0:00:32.7]} 32... Kd7 {[%clk 0:01:41.8]} 33.
Ne4 {[%clk 0:00:31.7]} 33... h6 {[%clk 0:01:38.9]} 34. Nf5 {[%clk 0:00:28.1]}
34... Bd5 {[%clk 0:01:12]} 35. Nf6+ {[%clk 0:00:26.2]} 35... Ke6 {[%clk
0:01:12.3]} 36. Nxh6 {[%clk 0:00:24.7]} 36... Kxe5 {[%clk 0:01:12.6]} 37. Nhg4+
{[%clk 0:00:18]} 37... Kd4 {[%clk 0:01:04]} 38. c3+ {[%clk 0:00:13.7]} 38... Kd3
{[%clk 0:01:03]} 39. Nxd5 {[%clk 0:00:13.4]} 39... cxd5 {[%clk 0:01:03.9]} 40.
Nf6 {[%clk 0:00:12.8]} 40... d4 {[%clk 0:00:59.2]} 41. cxd4 {[%clk 0:00:12.1]}
41... Kxd4 {[%clk 0:01:00.1]} 42. Kc2 {[%clk 0:00:11.7]} 42... Ke3 {[%clk
0:00:54.4]} 43. Kc3 {[%clk 0:00:11.4]} 43... Ne6 {[%clk 0:00:51.5]} 44. Nd5+
{[%clk 0:00:08.8]} 44... Kf2 {[%clk 0:00:51]} 45. Nxb6 {[%clk 0:00:08]} 45...
Kg2 {[%clk 0:00:48.3]} 46. Nd7 {[%clk 0:00:08.3]} 46... Kxh2 {[%clk 0:00:45.4]}
47. Nf6 {[%clk 0:00:08.5]} 47... Kg2 {[%clk 0:00:38.5]} 48. Kd3 {[%clk 0:00:08]}
48... Kf3 {[%clk 0:00:38.1]} 49. a4 {[%clk 0:00:05]} 49... bxa4 {[%clk 0:00:37]}
50. Kc4 {[%clk 0:00:05.5]} 50... Nc7 {[%clk 0:00:37.6]} 51. Kc3 {[%clk
0:00:03.5]} 51... g4 {[%clk 0:00:36.2]} 52. Nxg4 {[%clk 0:00:02.9]} 52... Kxg4
{[%clk 0:00:36.8]} 53. Kb2 {[%clk 0:00:02.4]} 53... Nb5 {[%clk 0:00:37.4]} 54.
Ka2 {[%clk 0:00:02.3]} 54... Kf4 {[%clk 0:00:38.1]} 55. Kb2 {[%clk 0:00:03.2]}
55... Ke4 {[%clk 0:00:38.8]} 56. Ka2 {[%clk 0:00:04.1]} 56... Kd4 {[%clk
0:00:39.6]} 57. Kb2 {[%clk 0:00:05]} 57... Kc4 {[%clk 0:00:40.4]} 58. Ka2 {[%clk
0:00:05.9]} 58... Kxb4 {[%clk 0:00:41.2]} 59. Kb2 {[%clk 0:00:06.8]} 59... a3+
{[%clk 0:00:41.8]} 60. Ka2 {[%clk 0:00:07.7]} 60... Ka4 {[%clk 0:00:42.5]} 61.
Ka1 {[%clk 0:00:08]} 61... Kb3 {[%clk 0:00:43.2]} 62. Kb1 {[%clk 0:00:08.9]}
62... Nd4 {[%clk 0:00:42.8]} 63. Ka1 {[%clk 0:00:09.8]} 63... Nc2+ {[%clk
0:00:43]} 64. Kb1 {[%clk 0:00:10.7]} 64... a2+ {[%clk 0:00:43.7]} 65. Kc1 {[%clk
0:00:11.3]} 65... a1=Q+ {[%clk 0:00:44.6]} 66. Kd2 {[%clk 0:00:12.2]} 66... Qe1+
{[%clk 0:00:45.1]} 67. Kd3 {[%clk 0:00:13.1]} 67... Qe3# {[%clk 0:00:45.9]} 0-1